fUSD/lending_fUSD_20260129
["ID","MTS","AMOUNT","RATE_DAILY","PERIOD"]
[404010343,1769716148377,-500.0,0.00014548,2]
[404010344,1769716148399,-500.0,0.00014548,2]
[404010345,1769716148696,-500.0,0.00014548,2]
[404010346,1769716148722,-500.0,0.00014548,2]
[404010347,1769716148747,-500.0,0.00014548,2]
[404010348,1769716148771,-500.0,0.00014548,2]
[404010349,1769716148793,-500.0,0.00014548,2]
[404010350,1769716148817,-500.0,0.00014548,2]
[404010351,1769716148840,-500.0,0.00014548,2]
[404010352,1769716148865,-500.0,0.00014548,2]
[404010353,1769716148889,-500.0,0.00014548,2]
[404010354,1769716148914,-500.0,0.00014548,2]
[404010355,1769716148938,-500.0,0.00014548,2]
[404010356,1769716148962,-201.42324783,0.00014548,2]
[404010357,1769716148988,-500.0,0.00014548,2]
[404010358,1769716149011,-500.0,0.00014548,2]
[404010359,1769716149033,-500.0,0.00014548,2]
[404010360,1769716149055,-500.0,0.00014548,2]
[404010361,1769716149078,-20353.42674441,0.00014549,2]
[404010362,1769716149105,-29391.16092568,0.00014549,2]
[404010363,1769716149398,-28434.52752,0.00014549,2]
[404010364,1769716156094,-203907.8944,0.00014549,2]
[404010365,1769716158104,-35857.64042,0.00014549,2]
[404010367,1769716171120,-16431.11393432,0.00014549,2]
[404010368,1769716171142,-500.0,0.00014649,2]
[404010381,1769716231586,-500.0,0.00014849,2]
[404010383,1769716231596,-300.0,0.0001492,2]
[404010384,1769716231606,-1092.37996375,0.0001492,2]
[404010385,1769716231618,-107.62003625,0.0001492,2]
[404010386,1769716231628,-8537.150671,0.00014921,2]
[404010387,1769716231639,-407.0,0.00014921,2]
[404010388,1769716231651,-295.99999997,0.00014921,2]
[404010389,1769716231694,-10078.44371312,0.00014921,2]
[404010390,1769716231706,-1034.83236024,0.00014921,2]
[404010391,1769716231716,-381.16763976,0.00015096,2]
[404010392,1769716231758,-473.81018795,0.00015096,2]
[404010393,1769716231771,-5469.63784536,0.00015096,2]
[404010394,1769716231782,-454.11874776,0.00015096,2]
[404010414,1769716237822,-613.90959959,0.00015096,2]
[404010415,1769716237833,-2043.10991138,0.00015096,2]
[404010416,1769716237845,-8295.90863722,0.00015096,2]
[404010417,1769716237854,-150.0,0.00015197,2]
[404010418,1769716237863,-20353.42674433,0.00015294,2]
[404010419,1769716237874,-6035.06,0.0001531,2]
[404010420,1769716237883,-1141.75,0.00015351,2]
[404010421,1769716237894,-17731.66256899,0.00015408,2]
[404010422,1769716237904,-1507.82,0.00015486,2]
[404010423,1769716237913,-154.12,0.00015606,2]
[404010424,1769716237923,-385.64182036,0.00015636,2]
[404010425,1769716237932,-196.0,0.00015636,2]
[404010426,1769716237943,-20353.42674433,0.00015666,2]
[404010427,1769716237953,-255.0,0.00015667,2]
[404010428,1769716237962,-151.0,0.00015702,2]
[404010429,1769716237972,-151.0,0.00015702,2]
[404010430,1769716237982,-151.0,0.00015703,2]
[404010431,1769716237993,-151.0,0.00015703,2]
[404010432,1769716238002,-151.0,0.00015703,2]
[404010433,1769716238014,-151.0,0.00015703,2]
[404010434,1769716238023,-151.0,0.00015703,2]
[404010435,1769716238032,-151.0,0.00015715,2]
[404010436,1769716238042,-151.0,0.00015715,2]
[404010437,1769716238053,-17731.66256899,0.00015719,2]
[404010438,1769716238062,-780.88145659,0.00015722,2]
[404010439,1769716238072,-280.0,0.00015775,2]
[404010440,1769716238082,-245.0,0.00015807,2]
[404010441,1769716238092,-1893.0,0.00015815,2]
[404010442,1769716238102,-393.0,0.00015838,2]
[404010443,1769716238112,-1735.0,0.00015846,2]
[404010444,1769716238122,-200.0,0.0001585,2]
[404010445,1769716238131,-480.0,0.0001587,2]
[404010446,1769716238141,-258.0,0.00015901,2]
[404010447,1769716238150,-150.0,0.00016001,2]
[404010448,1769716238159,-4145.85142801,0.00016031,2]
[404010449,1769716238192,-2256.70555665,0.00016031,2]
[404010450,1769716238203,-3557.83562371,0.00016031,2]
[404010452,1769716239713,-591.07158026,0.00016031,2]
[404010453,1769716239767,-2179.26069336,0.00016031,2]
[404010454,1769716239778,-838.48,0.00016031,2]
[404010455,1769716239790,-4162.457687,0.00016031,2]
[404010456,1769716239799,-20353.42674433,0.00016038,2]
[404010457,1769716239809,-2060.75851869,0.00016222,2]
[404010458,1769716239818,-3635.42229648,0.00016222,2]
[404010459,1769716239827,-5438.3743352,0.00016222,2]
[404010460,1769716239836,-7358.3136,0.00016222,2]
[404010461,1769716239846,-200.0,0.00016245,2]
[404010462,1769716239855,-1507.82,0.0001626,2]
[404010463,1769716239863,-420.0,0.00016331,2]
[404010464,1769716239873,-250.0,0.00016334,2]
[404010465,1769716239882,-17731.66256899,0.00016342,2]
[404010466,1769716239891,-500.0,0.00016373,2]
[404010467,1769716239900,-627.98212971,0.00016373,2]
[404010468,1769716239909,-500.0,0.00016373,2]
[404010469,1769716239918,-500.0,0.00016373,2]
[404010470,1769716239927,-500.0,0.00016373,2]
[404010471,1769716239936,-500.0,0.00016373,2]
[404010472,1769716239945,-500.0,0.00016373,2]
[404010473,1769716239954,-500.0,0.00016373,2]
[404010474,1769716239963,-500.0,0.00016373,2]
[404010475,1769716239971,-20353.42674433,0.00016411,2]
[404010476,1769716239980,-1680.0,0.00016412,2]
[404010477,1769716239989,-500.0,0.00016438,2]
[404010478,1769716240000,-500.0,0.00016438,2]
[404010479,1769716240010,-500.0,0.00016438,2]
[404010480,1769716240022,-500.0,0.00016438,2]
[404010481,1769716240031,-500.0,0.00016438,2]
[404010482,1769716240040,-500.0,0.00016438,2]
[404010483,1769716240049,-500.0,0.00016438,2]
[404010484,1769716240059,-500.0,0.00016438,2]
[404010485,1769716240068,-500.0,0.00016438,2]
[404010486,1769716240077,-500.0,0.00016438,2]
[404010487,1769716240088,-500.0,0.00016438,2]
[404010488,1769716240100,-500.0,0.00016438,2]
[404010489,1769716240110,-500.0,0.00016438,2]
[404010490,1769716240329,-500.0,0.00016438,2]
[404010491,1769716240359,-500.0,0.00016438,2]
[404010492,1769716240369,-500.0,0.00016438,2]
[404010494,1769716240379,-500.0,0.00016438,2]
[404010495,1769716240388,-500.0,0.00016438,2]
[404010496,1769716240397,-500.0,0.00016438,2]
[404010497,1769716240406,-500.0,0.00016438,2]
[404010498,1769716240416,-500.0,0.00016438,2]
[404010499,1769716240425,-285.81528684,0.00016438,2]
[404010500,1769716240434,-500.0,0.00016438,2]
[404010501,1769716240443,-500.0,0.00016438,2]
[404010502,1769716240453,-500.0,0.00016438,2]
[404010503,1769716240462,-500.0,0.00016438,2]
[404010504,1769716240472,-500.0,0.00016438,2]
[404010505,1769716240481,-500.0,0.00016438,2]
[404010506,1769716240490,-500.0,0.00016438,2]
[404010507,1769716240500,-500.0,0.00016438,2]
[404010508,1769716240510,-500.0,0.00016438,2]
[404010509,1769716240519,-350.0,0.00016438,2]
[404010510,1769716240527,-500.0,0.00016438,2]
[404010511,1769716240536,-500.0,0.00016438,2]
[404010512,1769716240545,-500.0,0.00016438,2]
[404010513,1769716240554,-500.0,0.00016438,2]
[404010514,1769716240563,-1050.34,0.00016438,2]
[404010515,1769716240573,-500.0,0.00016499,2]
[404010516,1769716240583,-500.0,0.00016499,2]
[404010517,1769716240592,-500.0,0.00016499,2]
[404010518,1769716240601,-509.53416261,0.00016499,2]
[404010519,1769716240611,-500.0,0.00016499,2]
[404010520,1769716240620,-17731.66256899,0.00016654,2]
[404010521,1769716240633,-1274.54766558,0.000167,2]
[404010522,1769716240642,-1050.34,0.00016712,2]
[404010523,1769716240651,-500.0,0.0001674,2]
[404010524,1769716240660,-20353.42674433,0.00016783,2]
[404010525,1769716240670,-200.0,0.000168,6]
[404010526,1769716240679,-1274.54766556,0.00016871,2]
[404010527,1769716240688,-618.86086486,0.00016872,2]
[404010528,1769716240697,-433.0,0.00016875,2]
[404010529,1769716240708,-500.0,0.000169,6]
[404010530,1769716240716,-1000.0,0.000169,2]
[404010531,1769716240726,-500.0,0.00016921,2]
[404010532,1769716240735,-17731.66256899,0.00016965,2]
[404010533,1769716240744,-151.0,0.00016969,2]
[404010534,1769716240755,-151.0,0.00016969,2]
[404010535,1769716240764,-500.0,0.00016971,2]
[404010536,1769716240773,-500.0,0.00016971,2]
[404010537,1769716240782,-313.33608434,0.00016971,2]
[404010538,1769716240790,-500.0,0.00016971,2]
[404010539,1769716240799,-203.62711429,0.00016971,2]
[404010540,1769716240808,-578491.2993691,0.00016972,2]
[404010541,1769716240817,-41481.5545363,0.00016972,2]
[404010542,1769716240826,-9972.1086567,0.00016972,2]
[404010543,1769716240835,-129370.402675,0.00016972,2]
[404010544,1769716240844,-12987.3132557,0.00016972,2]
[404010545,1769716240853,-1050.34,0.00016986,2]
[404010546,1769716240862,-250.0,0.00016986,5]
[404010547,1769716240872,-250.0,0.00016986,5]
[404010548,1769716240881,-250.0,0.00016986,5]
[404010549,1769716240891,-211.03586,0.00016986,5]
[404010550,1769716240900,-500.0,0.00016999,2]
[404010551,1769716240909,-500.0,0.00016999,2]
[404010552,1769716240919,-500.0,0.00016999,2]
[404010553,1769716240928,-500.0,0.00016999,2]
[404010554,1769716240938,-500.0,0.00016999,2]
[404010555,1769716240947,-500.0,0.00016999,2]
[404010556,1769716240956,-500.0,0.00016999,2]
[404010557,1769716240965,-533.7167789,0.00016999,2]
[404010558,1769716240975,-500.0,0.00016999,2]
[404010559,1769716240984,-500.0,0.00016999,2]
[404010560,1769716240993,-250.0,0.00017,2]
[404010561,1769716241003,-1507.82,0.00017034,2]
[404010562,1769716241015,-1274.54766556,0.00017043,2]
[404010563,1769716241024,-4799.0,0.00017096,2]
[404010564,1769716241034,-322.6107,0.00017099,2]
[404010565,1769716241044,-209.40437684,0.00017099,2]
[404010566,1769716241054,-359.91781005,0.00017099,2]
[404010567,1769716241064,-500.0,0.00017099,2]
[404010568,1769716241075,-250.0,0.00017099,2]
[404010569,1769716241085,-500.0,0.00017099,2]
[404010570,1769716241094,-250.0,0.00017099,2]
[404010571,1769716241105,-250.0,0.00017099,2]
[404010572,1769716241114,-500.0,0.00017099,2]
[404010573,1769716241124,-250.0,0.00017099,2]
[404010574,1769716241133,-500.0,0.00017099,2]
[404010575,1769716241141,-250.0,0.00017099,2]
[404010576,1769716241149,-500.0,0.00017099,2]
[404010577,1769716241157,-209.40437684,0.00017099,2]
[404010578,1769716241165,-500.0,0.00017099,2]
[404010579,1769716241173,-266.88383045,0.00017099,2]
[404010580,1769716241181,-500.0,0.00017099,2]
[404010581,1769716241189,-500.0,0.00017099,2]
[404010582,1769716241197,-500.0,0.00017099,2]
[404010583,1769716241205,-500.0,0.00017099,2]
[404010584,1769716241215,-500.0,0.00017099,2]
[404010585,1769716241224,-500.0,0.00017099,2]
[404010586,1769716241233,-500.0,0.00017099,2]
[404010587,1769716241242,-500.0,0.00017099,2]
[404010588,1769716241252,-500.0,0.00017099,2]
[404010589,1769716241261,-500.0,0.00017099,2]
[404010590,1769716241271,-500.0,0.00017099,2]
[404010591,1769716241280,-500.0,0.00017099,2]
[404010592,1769716241290,-500.0,0.00017099,2]
[404010593,1769716241299,-500.0,0.00017099,2]
[404010594,1769716241309,-500.0,0.00017099,2]
[404010595,1769716241319,-854.2589148,0.00017099,2]
[404010596,1769716241328,-500.0,0.00017099,2]
[404010597,1769716241337,-500.0,0.00017099,2]
[404010598,1769716241346,-500.0,0.00017099,2]
[404010599,1769716241356,-500.0,0.00017099,2]
[404010600,1769716241364,-500.0,0.00017099,2]
[404010601,1769716241374,-500.0,0.00017099,2]
[404010602,1769716241383,-500.0,0.00017099,2]
[404010603,1769716241392,-250.0,0.00017099,2]
[404010604,1769716241401,-209.40437684,0.00017099,2]
[404010605,1769716241411,-250.0,0.00017099,2]
[404010606,1769716241420,-174.61919141,0.00017099,2]
[404010607,1769716241431,-250.0,0.00017099,2]
[404010608,1769716241442,-250.0,0.00017099,2]
[404010609,1769716241452,-250.0,0.00017099,2]
[404010610,1769716241461,-500.0,0.00017099,2]
[404010611,1769716241470,-500.0,0.00017099,2]
[404010612,1769716241479,-250.0,0.00017099,2]
[404010613,1769716241488,-500.0,0.00017099,2]
[404010614,1769716241499,-250.0,0.00017099,2]
[404010615,1769716241508,-500.0,0.00017099,2]
[404010616,1769716241517,-721.12765535,0.00017099,2]
[404010617,1769716241527,-500.0,0.00017099,2]
[404010618,1769716241536,-250.0,0.00017099,2]
[404010619,1769716241546,-500.0,0.00017099,2]
[404010620,1769716241555,-250.0,0.00017099,2]
[404010621,1769716241564,-301.02953611,0.00017099,2]
[404010622,1769716241573,-500.0,0.00017099,2]
[404010623,1769716241582,-500.0,0.00017099,2]
[404010624,1769716241591,-500.0,0.00017099,2]
[404010625,1769716241600,-500.0,0.00017099,2]
[404010626,1769716241610,-500.0,0.00017099,2]
[404010627,1769716241619,-500.0,0.00017099,2]
[404010628,1769716241629,-578.20924308,0.00017099,2]
[404010629,1769716241638,-250.0,0.00017099,2]
[404010630,1769716241647,-250.0,0.00017099,2]
[404010631,1769716241657,-250.0,0.00017099,2]
[404010632,1769716241666,-250.0,0.00017099,2]
[404010633,1769716241675,-250.0,0.00017099,2]
[404010634,1769716241685,-250.0,0.00017099,2]
[404010635,1769716241694,-250.0,0.00017099,2]
[404010636,1769716241703,-250.0,0.00017099,2]
[404010637,1769716241712,-250.0,0.00017099,2]
[404010638,1769716241722,-250.0,0.00017099,2]
[404010639,1769716241731,-250.0,0.00017099,2]
[404010640,1769716241740,-250.0,0.00017099,2]
[404010641,1769716241751,-250.0,0.00017099,2]
[404010642,1769716241761,-250.0,0.00017099,2]
[404010643,1769716241770,-250.0,0.00017099,2]
[404010644,1769716241779,-250.0,0.00017099,2]
[404010645,1769716241788,-250.0,0.00017099,2]
[404010646,1769716241798,-250.0,0.00017099,2]
[404010647,1769716241840,-1303.0,0.00017135,2]
[404010648,1769716241849,-217.15233878,0.00017154,2]
[404010649,1769716241859,-20353.42674433,0.00017155,2]
[404010650,1769716241868,-150.0,0.00017178,2]
[404010651,1769716241876,-225.18697532,0.00017209,2]
[404010652,1769716241886,-1274.54766556,0.00017214,2]
[404010653,1769716241895,-200.0,0.0001722,2]
[404010654,1769716241903,-200.0,0.00017249,2]
[404010655,1769716241913,-1050.34,0.0001726,2]
[404010656,1769716241922,-233.51889341,0.00017264,2]
[404010657,1769716241931,-17731.66256899,0.00017277,2]
[404010658,1769716241940,-242.15909246,0.00017319,2]
[404010659,1769716241949,-200.0,0.00017332,2]
[404010660,1769716241958,-618.86086484,0.00017336,2]
[404010661,1769716241967,-251.11897888,0.00017374,2]
[404010662,1769716241976,-1274.54766556,0.00017386,2]
[404010663,1769716241985,-700.0,0.000174,6]
[404010664,1769716241994,-200.0,0.00017408,2]
[404010665,1769716242005,-260.4103811,0.00017429,2]
[404010666,1769716242016,-447.29081067,0.00017466,2]
[404010667,1769716242025,-347.0,0.00017478,2]
[404010668,1769716242035,-270.0455652,0.00017484,2]
[404010669,1769716242044,-505.81433049,0.00017499,2]
[404010670,1769716242055,-644.51421392,0.00017499,2]
[404010671,1769716242064,-1000.0,0.000175,6]
[404010672,1769716242074,-311.0,0.00017514,2]
[404010673,1769716242084,-190.96711797,0.00017518,2]
[404010674,1769716242094,-152.36,0.00017518,2]
[404010675,1769716242104,-20353.42674433,0.00017528,2]
[404010676,1769716242114,-1050.34,0.00017534,2]
[404010677,1769716242124,-280.03725112,0.00017539,2]
[404010678,1769716242134,-311.0,0.00017553,2]
[404010679,1769716242146,-1274.54766556,0.00017557,2]
[404010680,1769716242156,-347.0,0.00017572,2]
[404010681,1769716242166,-4799.0,0.00017573,2]
[404010682,1769716242175,-17731.66256899,0.00017588,2]
[404010683,1769716242184,-311.0,0.00017591,2]
[404010684,1769716242194,-347.0,0.00017592,2]
[404010685,1769716242204,-290.39862941,0.00017594,2]
[404010686,1769716242214,-1300.0,0.000176,6]
[404010687,1769716242223,-347.0,0.00017603,2]
[404010688,1769716242232,-347.0,0.00017606,2]
[404010689,1769716242241,-347.0,0.00017612,2]
[404010690,1769716242251,-200.0,0.00017619,2]
[404010691,1769716242260,-311.0,0.00017642,2]
[404010692,1769716242269,-217.15233878,0.00017647,2]
[404010693,1769716242278,-217.15233878,0.00017647,2]
[404010694,1769716242288,-885.86649465,0.00017647,2]
[404010695,1769716242297,-181.08010149,0.00017647,2]
[404010696,1769716242306,-301.1433787,0.00017649,2]
[404010697,1769716242315,-347.0,0.00017666,2]
[404010698,1769716242324,-311.0,0.00017675,2]
[404010699,1769716242334,-150.0,0.00017699,2]
[404010700,1769716242343,-150.0,0.00017699,2]
[404010701,1769716242352,-150.0,0.00017699,2]
[404010702,1769716242361,-150.0,0.00017699,2]
[404010703,1769716242369,-150.0,0.00017699,2]
[404010704,1769716242379,-150.0,0.00017699,2]
[404010705,1769716242389,-150.0,0.00017699,2]
[404010706,1769716242398,-200.0,0.000177,6]
[404010707,1769716242407,-347.0,0.00017702,2]
[404010708,1769716242416,-347.0,0.00017705,2]
[404010709,1769716242426,-1274.54766556,0.00017729,2]
[404010710,1769716242436,-2520.0,0.00017733,2]
[404010711,1769716242446,-257.53390888,0.00017754,2]
[404010712,1769716242455,-150.0,0.00017754,2]
[404010713,1769716242465,-150.0,0.00017754,2]
[404010714,1769716242474,-200.0,0.00017754,2]
[404010715,1769716242483,-200.0,0.00017754,2]
[404010716,1769716242492,-311.0,0.00017768,2]
[404010717,1769716242502,-186.64,0.00017768,2]
[404010718,1769716242511,-347.0,0.00017783,2]
[404010719,1769716242521,-2207.947,0.00017789,2]
[404010720,1769716242530,-995.32942917,0.000178,2]
[404010721,1769716242540,-1500.0,0.000178,2]
[404010722,1769716242549,-618.86086484,0.000178,2]
[404010723,1769716242559,-200.0,0.000178,6]
[404010724,1769716242568,-1050.34,0.00017808,2]
[404010725,1769716242578,-200.0,0.00017809,2]
[404010726,1769716242587,-200.0,0.00017809,2]
[404010727,1769716242596,-1507.82,0.00017809,2]
[404010728,1769716242606,-2520.0,0.00017814,2]
[404010729,1769716242615,-995.32942912,0.00017817,2]
[404010730,1769716242624,-5000.0,0.0001782,2]
[404010731,1769716242633,-377.36599,0.0001782,2]
[404010732,1769716242643,-377.366,0.0001782,2]
[404010733,1769716242652,-995.32942912,0.00017833,2]
[404010734,1769716242661,-995.32942912,0.0001785,2]
[404010735,1769716242670,-200.0,0.00017855,2]
[404010736,1769716242679,-200.0,0.00017856,2]
[404010737,1769716242688,-200.0,0.00017856,2]
[404010738,1769716242698,-347.0,0.00017857,2]
[404010739,1769716242707,-347.0,0.00017857,2]
[404010740,1769716242716,-995.32942912,0.00017867,2]
[404010741,1769716242725,-347.0,0.0001787,2]
[404010742,1769716242735,-25000.0,0.00017874,3]
[404010743,1769716242744,-587.0,0.00017875,2]
[404010744,1769716242753,-347.0,0.00017876,2]
[404010745,1769716242763,-25000.0,0.00017882,3]
[404010746,1769716242772,-995.32942912,0.00017883,2]
[404010747,1769716242781,-12587.19604332,0.00017891,3]
[404010748,1769716242813,-12412.80395668,0.00017891,3]
[404010749,1769716242823,-10000.0,0.00017898,2]
[404010750,1769716242832,-10168.0,0.00017899,2]
[404010751,1769716242841,-995.32942912,0.000179,2]
[404010752,1769716242849,-151.0,0.000179,2]
[404010753,1769716242858,-25000.0,0.000179,3]
[404010754,1769716242867,-167.889644,0.000179,2]
[404010755,1769716242876,-167.889644,0.000179,2]
[404010756,1769716242885,-167.889644,0.000179,2]
[404010757,1769716242894,-167.889644,0.000179,2]
[404010758,1769716242903,-151.0,0.000179,2]
[404010759,1769716242911,-151.0,0.000179,2]
[404010760,1769716242920,-151.0,0.000179,2]
[404010761,1769716242929,-200.0,0.000179,6]
[404010762,1769716242940,-20353.42674433,0.000179,2]
[404010763,1769716242949,-178.299841,0.000179,2]
[404010764,1769716242958,-178.299841,0.000179,2]
[404010765,1769716242967,-178.299841,0.000179,2]
[404010766,1769716242977,-178.299841,0.000179,2]
[404010767,1769716242986,-3317.84816933,0.000179,3]
[404010768,1769716243026,-15360.79979764,0.000179,3]
[404010769,1769716243036,-8378.83641811,0.000179,2]
[404010770,1769716243046,-17731.66256899,0.000179,2]
[404010771,1769716243057,-884.93137032,0.000179,2]
[404010772,1769716243067,-1274.54766556,0.000179,2]
[404010773,1769716243076,-72759.52270356,0.000179,2]
[404010774,1769716243086,-347.0,0.00017943,2]
[404010775,1769716243096,-347.0,0.00017955,2]
[404010776,1769716243105,-347.0,0.0001796,2]
[404010777,1769716243114,-500.0,0.00017973,2]
[404010778,1769716243123,-500.0,0.00017973,2]
[404010780,1769716243133,-500.0,0.00017973,2]
[404010781,1769716243143,-500.0,0.00017973,2]
[404010782,1769716243152,-500.0,0.00017973,2]
[404010783,1769716243162,-500.0,0.00017973,2]
[404010785,1769716243171,-500.0,0.00017973,2]
[404010787,1769716243180,-636.09023448,0.00017973,2]
[404010789,1769716243189,-500.0,0.00017973,2]
[404010791,1769716243199,-500.0,0.00017973,2]
[404010792,1769716243208,-500.0,0.00017973,2]
[404010793,1769716243218,-500.0,0.00017973,2]
[404010794,1769716243227,-505.47748232,0.00017973,2]
[404010795,1769716243236,-500.0,0.00017973,2]
[404010796,1769716243426,-500.0,0.00017973,2]
[404010797,1769716243436,-500.0,0.00017973,2]
[404010798,1769716243445,-500.0,0.00017973,2]
[404010799,1769716243455,-500.0,0.00017973,2]
[404010800,1769716243464,-500.0,0.00017973,2]
[404010801,1769716243475,-500.0,0.00017973,2]
[404010802,1769716243484,-500.0,0.00017973,2]
[404010803,1769716243493,-500.0,0.00017973,2]
[404010804,1769716243503,-500.0,0.00017973,2]
[404010805,1769716243512,-500.0,0.00017973,2]
[404010806,1769716243521,-500.0,0.00017973,2]
[404010807,1769716243530,-150.0,0.00017973,2]
[404010808,1769716243539,-152.36,0.0001799,2]
[404010809,1769716243549,-152.36,0.0001799,2]
[404010810,1769716243558,-152.36,0.0001799,2]
[404010811,1769716243567,-151.0,0.00017997,2]
[404010812,1769716243576,-200.0,0.00017998,2]
[404010813,1769716243585,-180.18156939,0.00017998,2]
[404010814,1769716243595,-150.0,0.00017999,2]
[404010815,1769716243604,-150.0,0.00017999,2]
[404010816,1769716243614,-224.15602178,0.00017999,2]
[404010817,1769716243623,-1336.91403435,0.00017999,5]
[404010818,1769716243632,-1336.91403434,0.00017999,5]
[404010819,1769716243642,-42232.21746251,0.00017999,2]
[404010820,1769716243651,-12037.49230273,0.00017999,2]
[404010821,1769716243661,-300.0,0.00017999,2]
[404010822,1769716243670,-666.0,0.00017999,2]
[404010823,1769716243679,-300.0,0.00017999,2]
[404010824,1769716243688,-300.0,0.00017999,2]
[404010825,1769716243697,-300.0,0.00017999,2]
[404010826,1769716243706,-666.0,0.00017999,2]
[404010827,1769716243715,-300.0,0.00017999,2]
[404010828,1769716243724,-300.0,0.00017999,2]
[404010829,1769716243733,-666.0,0.00017999,2]
[404010830,1769716243742,-300.0,0.00017999,2]
[404010831,1769716243751,-300.0,0.00017999,2]
[404010832,1769716243761,-425.78461427,0.00017999,2]
[404010833,1769716243770,-1334.0,0.00018,2]
[404010834,1769716243779,-615.0,0.00018,2]
[404010835,1769716243788,-1409.0,0.00018,2]
[404010836,1769716243797,-3478.0,0.00018,2]
[404010837,1769716243807,-1270.0,0.00018,2]
[404010838,1769716243816,-685.175,0.00018,2]
[404010839,1769716243825,-150.0,0.00018,2]
[404010840,1769716243834,-6573.0,0.00018,2]
[404010841,1769716243844,-6075.22,0.00018,2]
[404010842,1769716243853,-472624.42446574,0.00018,2]
[404010843,1769716243865,-615.00501975,0.00018,2]
[404010844,1769716243887,-1998.5348,0.00018,2]
[404010845,1769716243899,-8646.00078,0.00018,2]
[404010846,1769716243910,-753.43684338,0.00018,2]
[404010847,1769716243920,-3057.20276255,0.00018,2]
[404010848,1769716244044,-3736.17441015,0.00018,2]
[404010856,1769716245467,-151.0,0.00015725,2]
[404010857,1769716245477,-127.94,0.00016048,2]
[404010858,1769716245489,-23.06,0.00016048,2]
[404010859,1769716245498,-791.58469451,0.00018,2]
[404010860,1769716245517,-29858.36489582,0.00018,2]
[404010861,1769716245563,-33.50956143,0.00018,2]
[404010862,1769716245574,-9424.68837696,0.00018,2]
[404010863,1769716245592,-677137.07164159,0.00018,2]
[404010864,1769716246128,-1038.5489718,0.00018,2]
[404010866,1769716246139,-351.5521247,0.00018,2]
[404010868,1769716246150,-362.62256568,0.00018,2]
[404010869,1769716246195,-368.10958395,0.00018,2]
[404010870,1769716246207,-302.26160958,0.00018,2]
[404010871,1769716246218,-4207.39985839,0.00018,2]
[404010872,1769716246230,-2736.27217212,0.00018,2]
[404010875,1769716246424,-789.88461245,0.00018,2]
[404010876,1769716247143,-2757.84520282,0.00018,2]
[404010877,1769716247159,-6498.8924,0.00018,2]
[404010878,1769716247170,-1257.93035202,0.00018,2]
[404010970,1769716825260,6342.5,0.00013181,2]
[404011049,1769717243149,-813.663181,0.00015926,2]
[404011050,1769717243170,-166.66,0.00016007,2]
[404011051,1769717243189,-137.53567174,0.00016046,2]
[404011052,1769717245099,-862.46432826,0.00016046,2]
[404011053,1769717245120,-151.0,0.00016221,2]
[404011054,1769717245141,-151.0,0.00016223,2]
[404011055,1769717245162,-151.0,0.00016233,2]
[404011056,1769717245184,-151.0,0.00016233,2]
[404011057,1769717245219,-166.66,0.00016344,2]
[404011058,1769717245240,-300.0,0.00016371,2]
[404011059,1769717245261,-1200.0,0.00016372,2]
[404011060,1769717245287,-550.0,0.00016372,2]
[404011061,1769717245306,-506.79391477,0.00016373,2]
[404011062,1769717245328,-492.9262075,0.00016373,2]